bitfinex-derivatives/quotes_BTCF0:USTF0_20251030
["timestamp","ask_amount","ask_price","bid_price","bid_amount"]
[1761836834236,1.19505565,108130.0,108120.0,0.007]
[1761836834426,0.94451921,108130.0,108120.0,0.007]
[1761836834833,0.05809,108120.0,108110.0,0.06605822]
[1761836835040,1.56196288,108120.0,108110.0,0.06605822]
[1761836835241,1.32142644,108120.0,108110.0,0.06605822]
[1761836836234,1.08089,108120.0,108110.0,0.06705822]
[1761836836530,1.32142644,108120.0,108110.0,0.06705822]
[1761836836934,1.32142644,108120.0,108110.0,0.001]
[1761836837326,1.48462298,108120.0,108110.0,0.001]
[1761836837731,0.04485,108090.0,108080.0,6.491e-05]
[1761836837937,1.10069395,108090.0,108080.0,0.08263775]
[1761836838139,0.41696097,108090.0,108080.0,0.01728491]
[1761836838336,0.34496097,108090.0,108080.0,0.37808491]
[1761836838539,0.09496097,108090.0,108080.0,0.01728491]
[1761836838732,0.32496097,108090.0,108080.0,0.01728491]
[1761836839231,0.32496097,108090.0,108080.0,0.01928491]
[1761836839940,0.32496097,108090.0,108080.0,0.38008491]
[1761836839941,0.00011097,108090.0,108080.0,0.38008491]
[1761836840330,0.06496097,108090.0,108080.0,0.38008491]
[1761836840841,0.06496097,108090.0,108080.0,0.38208491]
[1761836841337,0.04496097,108090.0,108080.0,0.38208491]
[1761836841540,0.06496097,108090.0,108080.0,0.38208491]
[1761836841940,0.09496097,108090.0,108080.0,0.38208491]
[1761836842343,0.36496097,108090.0,108080.0,0.02128491]
[1761836842638,0.36496097,108090.0,108080.0,0.44811432]
[1761836842639,0.06496097,108090.0,108080.0,0.44811432]
[1761836842940,0.06596097,108090.0,108080.0,0.38008491]
[1761836843527,0.06596097,108090.0,108080.0,0.44612004]
[1761836843934,0.06696097,108090.0,108080.0,0.44412004]
[1761836844828,0.04696097,108090.0,108080.0,0.44412004]
[1761836845238,0.06696097,108090.0,108080.0,0.44412004]
[1761836845440,0.09696097,108090.0,108080.0,0.44412004]
[1761836846032,0.06696097,108090.0,108080.0,0.44412004]
[1761836846229,0.00211097,108090.0,108080.0,0.44412004]
[1761836846538,0.77082395,108090.0,108080.0,0.44343775]
[1761836846741,0.04498,108070.0,108060.0,0.11469348]
[1761836846928,0.05806,108060.0,108050.0,0.37802]
[1761836847237,0.05806,108060.0,108050.0,0.46065247]
[1761836847444,0.36782,108070.0,108060.0,0.03942]
[1761836847643,0.41782,108070.0,108060.0,0.40022]
[1761836847843,0.36782,108070.0,108060.0,0.40022]
[1761836848044,0.38789859,108070.0,108060.0,0.40322]
[1761836848238,0.36789859,108070.0,108060.0,0.04242]
[1761836848434,0.38789859,108070.0,108060.0,0.40322]
[1761836848634,0.36789859,108070.0,108060.0,0.40322]
[1761836848831,7.859e-05,108070.0,108060.0,0.73721]
[1761836849130,0.40473298,108090.0,108080.0,0.03942]
[1761836849131,0.001,108090.0,108080.0,0.03942]
[1761836849333,0.46195298,108100.0,108090.0,0.03942]
[1761836849535,0.51195298,108100.0,108090.0,0.03942]
[1761836849743,0.51195298,108100.0,108090.0,0.40022]
[1761836849744,0.10822,108100.0,108090.0,0.40022]
[1761836849940,0.36786,108110.0,108100.0,0.03942]
[1761836850132,0.09507729,108110.0,108100.0,0.03942]
[1761836850746,0.05806,108100.0,108090.0,0.3608]
[1761836850947,0.77179298,108100.0,108090.0,0.3608]
[1761836851244,0.04498,108090.0,108080.0,0.7235]
[1761836851538,0.04507729,108090.0,108080.0,0.7235]
[1761836851755,0.06507729,108090.0,108080.0,0.7235]
[1761836851942,9.729e-05,108090.0,108080.0,0.7235]
[1761836852247,9.729e-05,108090.0,108080.0,0.73254248]
[1761836852432,9.729e-05,108090.0,108080.0,0.7235]
[1761836852433,0.06507729,108090.0,108080.0,0.7235]
[1761836852738,0.06507729,108090.0,108080.0,0.80613018]
[1761836853744,0.06507729,108090.0,108080.0,0.48285018]
[1761836853930,0.04607729,108090.0,108080.0,0.7235]
[1761836854132,0.06607729,108090.0,108080.0,0.03942]
[1761836854336,0.05806,108080.0,108070.0,0.40022]
[1761836854539,0.51179298,108080.0,108070.0,0.40022]
[1761836854741,0.51179298,108080.0,108070.0,0.80625641]
[1761836855136,0.48179298,108080.0,108070.0,0.80625641]
[1761836855445,0.46179298,108080.0,108070.0,0.80625641]
[1761836855641,0.05806,108080.0,108070.0,0.80625641]
[1761836855845,0.04607729,108090.0,108080.0,0.03942]
[1761836856047,0.09607729,108090.0,108080.0,0.483058]
[1761836856547,0.49881027,108090.0,108080.0,0.483058]
[1761836856845,0.49881027,108090.0,108080.0,0.40022]
[1761836857045,1.08961027,108090.0,108080.0,0.122258]
[1761836857243,0.05806,108080.0,108070.0,0.807378]
[1761836857554,0.05806,108080.0,108070.0,0.72454]
[1761836857845,0.44981027,108090.0,108080.0,0.03942]
[1761836858045,0.49981027,108090.0,108080.0,0.48311431]
[1761836858350,0.00109729,108090.0,108080.0,0.48311431]
[1761836859144,0.06607729,108090.0,108080.0,0.48311431]
[1761836859351,0.46981027,108090.0,108080.0,0.48311431]
[1761836859839,0.78981027,108090.0,108080.0,0.48311431]
[1761836860040,0.62981027,108090.0,108080.0,0.46340431]
[1761836860345,0.62881027,108090.0,108080.0,0.46340431]
[1761836860548,0.62881027,108090.0,108080.0,0.48318437]
[1761836861048,0.99061027,108090.0,108080.0,0.08296437]
[1761836861548,1.91425027,108090.0,108080.0,0.08296437]
[1761836862343,0.05806,108080.0,108070.0,0.10267437]
[1761836862538,0.51179298,108080.0,108070.0,0.1027176]
[1761836862742,0.51179298,108080.0,108070.0,0.01971]
[1761836862949,0.51179298,108080.0,108070.0,0.40022]
[1761836863249,0.51179298,108080.0,108070.0,0.03942]
[1761836863449,0.51179298,108080.0,108070.0,0.40022]
[1761836863841,0.51179298,108080.0,108070.0,0.40122]
[1761836864250,0.10806,108080.0,108070.0,0.04142]
[1761836864445,0.04507729,108090.0,108080.0,0.03942]
[1761836864649,0.09507729,108090.0,108080.0,0.03942]
[1761836864840,0.09507729,108090.0,108080.0,0.40022]
[1761836865046,0.06507729,108090.0,108080.0,0.36302]
[1761836865241,0.06507729,108090.0,108080.0,0.72382]
[1761836865448,0.14133346,108090.0,108080.0,0.72382]
[1761836865738,0.17461258,108090.0,108080.0,0.72382]
[1761836866050,0.86834556,108090.0,108080.0,0.34327]
[1761836866251,0.60834556,108090.0,108080.0,0.72378]
[1761836866550,0.58394516,108090.0,108080.0,0.03942]
[1761836866851,0.58494516,108090.0,108080.0,0.03942]
[1761836869949,0.55466604,108090.0,108080.0,0.3608]
[1761836870147,0.78466604,108090.0,108080.0,0.3608]
[1761836870849,1.14546604,108090.0,108080.0,0.01971]
[1761836871046,0.05806,108080.0,108070.0,0.40022]
[1761836871250,0.76873992,108080.0,108070.0,0.3608]
[1761836871447,0.04463,108070.0,108060.0,0.3608]
[1761836871755,0.49537789,108070.0,108060.0,0.40022]
[1761836871949,1.15617789,108070.0,108060.0,0.03942]
[1761836872142,1.15617789,108070.0,108050.0,0.72354]
[1761836872143,0.05762,108060.0,108050.0,0.72354]
[1761836872347,0.53829992,108060.0,108050.0,0.72354]
[1761836872540,0.53829992,108060.0,108050.0,0.40022]
[1761836873752,1.13165992,108060.0,108050.0,0.38051]
[1761836873951,0.86165992,108060.0,108050.0,0.3608]
[1761836874255,1.13165992,108060.0,108050.0,0.3608]
[1761836874449,1.13165992,108060.0,108050.0,0.3628]
[1761836875555,1.49245992,108060.0,108050.0,0.002]
[1761836876153,1.49245992,108060.0,108050.0,0.005]
[1761836877049,1.49245992,108060.0,108050.0,0.003]
[1761836877249,2.0952987,108060.0,108050.0,0.002]
[1761836877552,0.04463,108030.0,108020.0,1.8608]
[1761836877751,0.06472729,108030.0,108020.0,1.8608]
[1761836878153,0.04472729,108030.0,108020.0,1.8608]
[1761836878449,9.729e-05,108030.0,108020.0,1.86941]
[1761836878660,9.729e-05,108030.0,108020.0,2.5647484]
[1761836878849,1.14535298,108060.0,108050.0,0.03942]
[1761836879152,0.45604492,108060.0,108050.0,0.03942]
[1761836879360,0.8297779,108060.0,108050.0,0.03942]
[1761836879657,0.8297779,108060.0,108040.0,0.3608]
[1761836879658,0.04463,108050.0,108040.0,0.40022]
[1761836880259,0.46135298,108060.0,108050.0,0.03942]
[1761836880459,0.05762,108060.0,108050.0,0.01971]
[1761836880660,0.04463,108050.0,108040.0,0.40022]
[1761836881050,0.46836298,108050.0,108040.0,0.36262]
[1761836881251,1.07428298,108050.0,108040.0,0.001]
[1761836881451,1.07152298,108050.0,108040.0,0.001]
[1761836882152,0.82152298,108050.0,108040.0,0.04042]
[1761836883246,0.77152298,108050.0,108040.0,0.04042]
[1761836883655,0.79152298,108050.0,108040.0,0.04042]
[1761836884150,0.79152298,108050.0,108040.0,0.03942]
[1761836884360,0.05762,108040.0,108030.0,0.40022]
[1761836884760,0.02323,108020.0,108010.0,0.0001078]
[1761836884962,1.16635298,108020.0,108010.0,0.0198178]
[1761836885152,0.76274,108020.0,108010.0,0.0395278]
[1761836885458,0.07762,108020.0,108010.0,0.0395278]
[1761836886262,0.07762,108020.0,108010.0,0.4003278]
[1761836886452,0.05762,108020.0,108010.0,0.4003278]
[1761836886659,0.41842,108040.0,108030.0,0.03942]
[1761836886857,0.78781157,108040.0,108030.0,0.03942]
[1761836887063,0.45842,108040.0,108030.0,0.03942]
[1761836887264,0.86215298,108040.0,108030.0,0.04042]
[1761836887450,0.82215298,108040.0,108030.0,0.04042]
[1761836887650,0.84215298,108040.0,108030.0,0.04342]
[1761836887864,0.84215298,108040.0,108030.0,0.02371]
[1761836888164,0.84415298,108040.0,108030.0,0.02271]
[1761836888552,0.06022,108040.0,108030.0,0.72466]
[1761836888865,0.004,108040.0,108030.0,0.72466]
[1761836889059,0.06022,108040.0,108030.0,0.36386]
[1761836889366,0.05762,108020.0,108010.0,0.0198178]
[1761836889659,0.07762,108020.0,108010.0,0.4003278]
[1761836889860,1.10584298,108040.0,108010.0,0.4003278]
[1761836890168,0.04463,108030.0,108020.0,0.40022]
[1761836890368,0.06463,108030.0,108020.0,0.03942]
[1761836890661,0.06463,108030.0,108020.0,0.36382]
[1761836891050,0.06463,108030.0,108020.0,0.72462]
[1761836891256,0.04463,108030.0,108020.0,0.72462]
[1761836891766,0.05962,108040.0,108030.0,0.03942]
[1761836892065,0.002,108040.0,108030.0,0.40022]
[1761836892667,0.02323,108050.0,108040.0,0.03942]
[1761836892857,0.06714379,108050.0,108040.0,0.72454]
[1761836893057,0.06463,108050.0,108040.0,0.73814041]
[1761836893258,0.08856762,108050.0,108040.0,0.37734041]
[1761836893961,0.06856762,108050.0,108040.0,0.73814041]
[1761836894167,0.08856701,108050.0,108040.0,0.37734041]
[1761836894765,0.02323,108050.0,108040.0,0.73814041]
[1761836894967,0.40443,108070.0,108060.0,0.03942]
[1761836895168,0.4483939,108070.0,108060.0,0.37722041]
[1761836895364,0.85703571,108070.0,108060.0,0.01360041]
[1761836895561,1.065406,108070.0,108060.0,0.33784041]
[1761836895871,1.09026559,108070.0,108060.0,0.33784041]
[1761836896055,1.41450559,108070.0,108060.0,0.01360041]
[1761836896456,0.91127248,108070.0,108060.0,0.03060041]
[1761836896669,0.49719336,108070.0,108060.0,0.43082041]
[1761836896864,0.0885939,108070.0,108060.0,0.43082041]
[1761836897064,0.0685939,108070.0,108060.0,0.43082041]
[1761836897261,0.0249639,108070.0,108060.0,0.44193041]
[1761836897472,0.0259639,108070.0,108060.0,0.45193041]
[1761836897974,0.002,108070.0,108060.0,0.45193041]
[1761836898362,0.0244679,108070.0,108060.0,0.43182041]
[1761836898560,0.3330728,108070.0,108060.0,0.43182041]
[1761836898769,0.3360728,108070.0,108060.0,0.73914041]
[1761836899367,0.3160728,108070.0,108060.0,0.72554]
[1761836899874,0.0750979,108070.0,108060.0,0.72554]
[1761836900168,0.0314679,108070.0,108060.0,0.73665]
[1761836900473,0.0314679,108070.0,108060.0,0.73941]
[1761836900668,0.0314679,108070.0,108060.0,0.73665]
[1761836900869,0.0314679,108070.0,108060.0,0.73941]
[1761836901170,0.0759479,108070.0,108060.0,0.72554]
[1761836901471,0.0314679,108070.0,108060.0,0.72554]
[1761836901970,0.03139004,108070.0,108060.0,0.72554]
[1761836902170,0.03139004,108070.0,108060.0,0.40122]
[1761836902372,0.03139004,108070.0,108060.0,0.7255]
[1761836902571,0.03139004,108070.0,108060.0,0.8291542]
[1761836902765,0.008,108070.0,108060.0,1.0727291]
[1761836902961,0.03785648,108100.0,108090.0,0.03942]
[1761836903162,0.05917152,108100.0,108090.0,0.72434]
[1761836903364,0.08081152,108100.0,108090.0,0.72434]
[1761836904279,0.08281152,108100.0,108090.0,0.758437]
[1761836905369,0.08381152,108100.0,108090.0,0.772437]
[1761836905568,0.02634152,108100.0,108090.0,0.772437]
[1761836906273,0.08376152,108100.0,108090.0,0.772437]
[1761836906769,0.08376152,108100.0,108090.0,0.448317]
[1761836907073,0.32473642,108100.0,108090.0,0.448317]
[1761836907774,0.08376152,108100.0,108090.0,0.448317]
[1761836908074,0.08376152,108100.0,108090.0,0.43922]
[1761836908268,0.06042,108100.0,108090.0,0.43922]
[1761836908778,0.6621949,108100.0,108090.0,0.039]
[1761836908979,0.9721949,108100.0,108090.0,0.039]
[1761836910064,1.5721949,108100.0,108090.0,0.039]
[1761836910272,0.05742,108080.0,108070.0,0.40022]
[1761836910470,0.3183949,108080.0,108070.0,0.7241]
[1761836911571,0.3183949,108080.0,108070.0,0.40022]
[1761836911770,0.2983949,108080.0,108070.0,0.40022]
[1761836912578,0.05742,108080.0,108070.0,0.40022]
[1761836912968,0.07742,108080.0,108070.0,0.40022]
[1761836913167,0.3283949,108080.0,108070.0,0.40122]
[1761836913569,0.3373949,108080.0,108070.0,0.40222]
[1761836914077,0.3283949,108080.0,108070.0,0.40122]
[1761836914281,0.3363949,108080.0,108070.0,0.40222]
[1761836915375,0.07542,108080.0,108070.0,0.40222]
[1761836915579,0.04084,108080.0,108070.0,0.40222]
[1761836916171,0.07542,108080.0,108070.0,0.40222]
[1761836916980,0.018,108080.0,108070.0,0.40222]
[1761836917178,0.07542,108080.0,108070.0,0.40222]
[1761836917770,0.018,108080.0,108070.0,0.40222]
[1761836918270,0.07542,108080.0,108070.0,0.40222]
[1761836918781,0.018,108080.0,108070.0,1.3384904]
[1761836919172,0.018,108080.0,108070.0,1.00222]
[1761836919372,0.05378,108080.0,108070.0,0.40222]
[1761836919576,0.018,108080.0,108070.0,0.40222]
[1761836920080,0.05378,108080.0,108070.0,0.40222]
[1761836920278,0.07542,108080.0,108070.0,0.7257]
[1761836920887,0.07542,108080.0,108070.0,0.40222]
[1761836921075,0.09542,108080.0,108070.0,0.7257]
[1761836921384,0.3363949,108080.0,108070.0,0.40222]
[1761836921581,0.3363949,108080.0,108070.0,0.72566]
[1761836921973,0.6391549,108080.0,108070.0,0.3628]
[1761836922285,0.6363949,108080.0,108070.0,0.002]
[1761836922669,1.3206349,108080.0,108070.0,0.002]
[1761836923076,2.1643698,108080.0,108070.0,0.002]
[1761836923276,2.1616098,108080.0,108070.0,0.002]
[1761836923782,1.9233949,108080.0,108070.0,0.002]
[1761836923982,2.1616098,108080.0,108070.0,0.002]
[1761836924283,2.1643698,108080.0,108070.0,0.002]
[1761836924784,1.5643698,108080.0,108070.0,0.002]
[1761836924987,0.04448,108050.0,108040.0,0.42672808]
[1761836925282,0.6054549,108050.0,108040.0,0.3608]
[1761836925680,0.05742,108040.0,108030.0,0.42672808]
[1761836925881,0.5683949,108040.0,108030.0,0.42672808]
[1761836926380,0.90112619,108040.0,108030.0,0.06592808]
[1761836927176,1.86192619,108040.0,108030.0,0.06592808]
[1761836927378,1.26192619,108040.0,108030.0,0.06592808]
[1761836927583,1.26468619,108040.0,108030.0,0.06592808]
[1761836927780,0.04448,108030.0,108020.0,0.06592808]
[1761836928088,0.9562549,108030.0,108020.0,0.06592808]
[1761836928786,0.05742,108020.0,108010.0,0.06603588]
[1761836928988,0.92546804,108020.0,108010.0,0.0001078]
[1761836929380,0.9019149,108020.0,108010.0,0.0001078]
[1761836930185,1.88623328,108020.0,108010.0,0.0001078]
[1761836930386,0.04448,108010.0,108000.0,1.0]
[1761836930588,0.9662549,108010.0,108000.0,0.74298109]
[1761836931590,1.29008252,108010.0,108000.0,0.74298109]
[1761836932096,1.29008252,108010.0,108000.0,0.76269109]
[1761836932386,0.60928252,108010.0,108000.0,0.76269109]
[1761836932692,0.06454762,108010.0,108000.0,1.14320109]
[1761836932986,0.05254762,108010.0,108000.0,1.14320109]
[1761836933180,0.00806762,108010.0,108000.0,1.14320109]
[1761836933384,0.01906762,108010.0,108000.0,1.14420109]
[1761836933893,0.04087762,108010.0,108000.0,1.14420109]
[1761836934380,0.06087762,108010.0,108000.0,1.14420109]
[1761836934580,0.06381762,108010.0,108000.0,1.14420109]
[1761836934781,0.04087762,108010.0,108000.0,1.14420109]
[1761836934981,0.06381762,108010.0,108000.0,1.14420109]
[1761836935584,0.01906762,108010.0,108000.0,1.14420109]
[1761836935784,0.01906762,108010.0,108000.0,1.74696109]
[1761836936476,0.01906762,108010.0,108000.0,1.74420109]
[1761836936685,0.04087762,108010.0,108000.0,1.74420109]
[1761836936985,0.06087762,108010.0,108000.0,1.74420109]
[1761836937185,0.01906762,108010.0,108000.0,1.74420109]
[1761836940093,0.03887762,108010.0,108000.0,1.74420109]
[1761836940578,0.01706762,108010.0,108000.0,1.83955979]
[1761836940778,0.3367,108040.0,108030.0,0.01971]
[1761836940985,0.6724249,108040.0,108030.0,0.03942]
[1761836941387,0.07769,108040.0,108030.0,0.03942]
[1761836941788,0.05773018,108040.0,108030.0,0.03942]
[1761836941986,0.29870508,108040.0,108030.0,0.03942]
[1761836942291,0.31870508,108040.0,108030.0,0.03942]
[1761836942489,0.03479018,108040.0,108030.0,0.03942]
[1761836942796,0.32970508,108040.0,108030.0,0.04042]
[1761836943191,0.30970508,108040.0,108030.0,0.04042]
[1761836944089,0.30970508,108040.0,108030.0,0.40122]
[1761836944596,0.28676508,108040.0,108030.0,0.40122]
[1761836944895,0.01104018,108040.0,108030.0,0.40122]
[1761836945395,0.2539149,108060.0,108030.0,0.4937927]
[1761836945596,0.34205695,108060.0,108050.0,0.03942]
[1761836945994,0.34205695,108060.0,108050.0,0.40022]
[1761836946385,0.32205695,108060.0,108050.0,0.40022]
[1761836946885,0.2986649,108060.0,108050.0,0.40022]
[1761836947085,0.6091649,108070.0,108060.0,0.03942]
[1761836947387,0.02480732,108080.0,108070.0,0.03942]
[1761836947593,0.0232921,108080.0,108070.0,0.4730485]
[1761836947794,0.02480732,108090.0,108080.0,0.03942]
[1761836947990,0.02480732,108100.0,108090.0,0.03942]
[1761836948198,0.34371222,108100.0,108090.0,0.03942]
[1761836948393,0.04475,108090.0,108080.0,0.7237]
[1761836948592,0.2857249,108090.0,108080.0,0.7237]
[1761836949001,0.2627849,108090.0,108080.0,0.7237]
[1761836949201,0.2857249,108090.0,108080.0,0.73271353]
[1761836949507,0.0925213,108090.0,108080.0,0.73271353]
[1761836949694,0.0925213,108090.0,108080.0,0.82524343]
[1761836949891,0.0925213,108090.0,108080.0,0.73271353]
[1761836950092,0.1372713,108090.0,108080.0,0.73271353]
[1761836950702,0.1442713,108090.0,108080.0,0.73371353]
[1761836950902,0.1075213,108090.0,108080.0,0.73371353]
[1761836951594,0.17707862,108090.0,108080.0,0.73371353]
[1761836952702,0.19707862,108090.0,108080.0,0.73371353]
[1761836953006,0.17707862,108090.0,108080.0,0.73371353]
[1761836953603,0.13232862,108090.0,108080.0,0.73371353]
[1761836953905,0.15413862,108090.0,108080.0,0.73371353]
[1761836954503,0.43805352,108090.0,108080.0,0.40122]
[1761836954701,0.41805352,108090.0,108080.0,0.72458]
[1761836954902,0.43805352,108090.0,108080.0,0.72458]
[1761836955296,0.43805352,108090.0,108080.0,0.40122]
[1761836955499,0.43805352,108090.0,108080.0,0.72454]
[1761836956397,0.72133264,108090.0,108080.0,0.68508]
[1761836956698,1.08213264,108090.0,108080.0,0.001]
[1761836956915,1.05732532,108090.0,108080.0,0.001]
[1761836957311,0.04364,108070.0,108060.0,0.73232915]
[1761836957511,0.3046149,108070.0,108060.0,0.36266]
[1761836957709,0.05679,108060.0,108050.0,0.40022]
[1761836958013,0.3177649,108060.0,108050.0,0.7235]
[1761836958411,0.07679,108060.0,108050.0,0.72346]
[1761836958622,0.3177649,108060.0,108050.0,0.40022]
[1761836959006,0.6377649,108060.0,108040.0,0.3608]
[1761836959202,0.2846149,108050.0,108040.0,0.40022]
[1761836959408,0.09364,108050.0,108040.0,0.40908421]
[1761836959817,0.08574747,108050.0,108040.0,0.40908421]
[1761836960010,0.08574747,108050.0,108040.0,0.3608]
[1761836960011,0.64993757,108050.0,108040.0,0.3608]
[1761836960213,0.05679,108040.0,108030.0,0.72346]
[1761836960414,0.07679,108040.0,108030.0,0.40022]
[1761836960608,0.07679,108040.0,108030.0,0.72342]
[1761836961008,0.23679,108040.0,108030.0,0.03942]
[1761836961203,0.0442,108030.0,108020.0,0.72347959]
[1761836961418,0.0642,108030.0,108020.0,0.72347959]
[1761836962423,0.0702,108030.0,108020.0,0.7326029]
[1761836962720,0.0532,108030.0,108020.0,0.7336029]
[1761836962919,0.009,108030.0,108020.0,0.7422129]
[1761836963521,0.0532,108030.0,108020.0,0.7336029]
[1761836963815,0.009,108030.0,108020.0,0.7422129]
[1761836964221,0.009,108030.0,108020.0,0.834794]
[1761836964417,0.009,108030.0,108020.0,0.7422129]
[1761836964818,0.009,108030.0,108020.0,0.834794]
[1761836965118,0.009,108030.0,108020.0,0.7422129]
[1761836965719,0.009,108030.0,108020.0,0.834794]
[1761836966024,0.009,108030.0,108020.0,0.7422129]
[1761836966626,0.0532,108030.0,108020.0,0.7336029]
[1761836967018,0.0732,108030.0,108020.0,0.7336029]
[1761836967519,0.0532,108030.0,108020.0,0.7336029]
[1761836969031,0.0732,108030.0,108020.0,0.72435959]
[1761836969219,0.0952928,108030.0,108020.0,0.40131959]
[1761836970617,0.0752928,108030.0,108020.0,0.40131959]
[1761836970821,0.0952928,108030.0,108020.0,0.40131959]
[1761836971525,0.0752928,108030.0,108020.0,0.40131959]
[1761836971727,0.0732,108030.0,108020.0,0.40131959]
[1761836972128,0.0732,108030.0,108020.0,0.17800959]
[1761836972326,0.0442,108010.0,108000.0,0.7924778]
[1761836972527,1.12681286,108010.0,108000.0,0.70058118]
[1761836972832,2.48327182,108010.0,108000.0,0.70058118]
[1761836973034,2.07761286,108010.0,108000.0,0.33978118]
[1761836973225,0.0442,107960.0,107950.0,0.4054]
[1761836973429,0.22787881,107960.0,107950.0,0.4054]
[1761836973733,0.02009881,107960.0,107950.0,0.7662]
[1761836973924,9.881e-05,107960.0,107950.0,0.7662]
[1761836974424,9.881e-05,107960.0,107950.0,0.7672]
[1761836974824,9.881e-05,107960.0,107950.0,1.09092]
[1761836975032,0.02009881,107960.0,107950.0,1.09092]
[1761836975837,9.881e-05,107960.0,107950.0,1.09092]
[1761836976725,0.00309881,107960.0,107950.0,1.09192]
[1761836977739,0.00609881,107960.0,107950.0,1.09092]
[1761836979335,0.00609881,107960.0,107950.0,1.09368]
[1761836979638,0.00609881,107960.0,107950.0,1.09092]
[1761836980534,0.00609881,107960.0,107950.0,1.0908]
[1761836981331,0.07029881,107960.0,107950.0,0.7672]
[1761836981637,0.05029881,107960.0,107950.0,1.09076]
[1761836982335,0.04829881,107960.0,107950.0,1.08976]
[1761836982938,0.04829881,107960.0,107950.0,1.08972]
[1761836984339,0.50606891,107960.0,107950.0,1.08972]
[1761836985240,0.50606891,107960.0,107950.0,0.7662]
[1761836986634,0.51606891,107960.0,107950.0,0.7662]
[1761836987032,0.51606891,107960.0,107950.0,0.4054]
[1761836988636,0.46606891,107960.0,107950.0,0.4054]
[1761836988833,0.74606891,107960.0,107950.0,0.4054]
[1761836990040,0.0442,107950.0,107940.0,0.38404]
[1761836990243,0.5114901,107950.0,107940.0,0.4054]
[1761836990434,0.5114901,107950.0,107940.0,0.41871]
[1761836990943,0.0431,107950.0,107940.0,0.41871]
[1761836991545,0.0431,107950.0,107940.0,0.5113599]
[1761836991745,0.0441,107950.0,107940.0,0.52062394]
[1761836991947,0.0441,107950.0,107940.0,0.52338394]
[1761836992138,0.0441,107950.0,107940.0,0.52062394]
[1761836992646,0.0441,107950.0,107940.0,0.52338394]
[1761836992842,0.0441,107950.0,107940.0,0.42797404]
[1761836993046,0.0451,107950.0,107940.0,0.52062394]
[1761836993844,0.0451,107950.0,107940.0,0.42797404]
[1761836994347,0.0901,107950.0,107940.0,0.75133404]
[1761836994648,0.06694,107950.0,107940.0,0.75133404]
[1761836994846,0.0451,107950.0,107940.0,0.75133404]
[1761836995642,0.0451,107950.0,107940.0,0.84398394]
[1761836995841,0.0451,107950.0,107940.0,1.25093404]
[1761836996038,9.881e-05,107960.0,107950.0,0.04343]
[1761836996239,9.881e-05,107960.0,107950.0,0.40423]
[1761836996548,0.4491901,107990.0,107980.0,0.04343]
[1761836996742,0.75155792,107990.0,107980.0,0.04343]
[1761836997142,0.14736782,107990.0,107980.0,0.40423]
[1761836997346,0.47155792,107990.0,107980.0,0.40423]
[1761836998052,0.49155792,107990.0,107980.0,0.40423]
[1761836998648,0.65655792,107990.0,107980.0,0.40523]
[1761836999551,0.66455792,107990.0,107980.0,0.40623]
[1761836999849,0.03536782,107990.0,107980.0,0.4196]
[1761837000048,0.013,107990.0,107980.0,0.4196]
[1761837000250,0.008,107990.0,107980.0,0.42777619]
[1761837000549,0.012,107990.0,107980.0,0.42877619]
[1761837001147,0.012,107990.0,107980.0,0.52139149]
[1761837001148,0.013,107990.0,107980.0,0.52139149]
[1761837001647,0.4627701,108020.0,108010.0,0.04343]
[1761837001854,0.52517903,108020.0,108010.0,0.40423]
[1761837002450,0.02240893,108020.0,108010.0,0.40423]
[1761837003041,0.02440893,108020.0,108010.0,0.5208196]
[1761837003241,0.81008932,108040.0,108030.0,0.04343]
[1761837003540,0.86008932,108040.0,108030.0,0.40423]
[1761837004245,0.04483922,108040.0,108030.0,0.76503]
[1761837004451,0.02483922,108040.0,108030.0,0.76503]
[1761837004745,0.02583922,108040.0,108030.0,0.77503]
[1761837005255,0.001,108040.0,108030.0,0.77503]
[1761837005454,0.02483922,108050.0,108040.0,0.0568]
[1761837005743,0.03327912,108060.0,108050.0,0.04343]
[1761837005949,0.03327912,108060.0,108050.0,0.40423]
[1761837005950,0.07511912,108060.0,108050.0,0.40423]
[1761837006148,0.51532922,108060.0,108050.0,0.40423]
[1761837006344,0.8020501,108060.0,108050.0,0.70522]
[1761837006655,0.83532922,108060.0,108050.0,0.38198]
[1761837006841,0.8020501,108060.0,108050.0,0.40423]
[1761837007046,0.83532922,108060.0,108050.0,0.40423]
[1761837007545,0.6420501,108060.0,108050.0,0.40423]
[1761837007745,0.4620501,108060.0,108050.0,0.40423]
[1761837007938,0.4041901,108060.0,108050.0,0.40423]
[1761837008143,0.4691901,108060.0,108050.0,0.40423]
[1761837008337,0.5120501,108060.0,108050.0,0.40423]
[1761837008548,0.4830501,108060.0,108050.0,0.41823]
[1761837008747,0.4830501,108060.0,108050.0,0.44323]
[1761837008943,0.046,108060.0,108050.0,0.44323]
[1761837009240,0.4830501,108060.0,108050.0,0.44323]
[1761837009853,0.4830501,108060.0,108050.0,0.43023]
[1761837010946,0.4820501,108060.0,108050.0,0.41623]
[1761837011251,0.4830501,108060.0,108050.0,0.42723]
[1761837011954,0.4830501,108060.0,108050.0,0.75035]
[1761837012159,0.6630501,108060.0,108050.0,0.75035]
[1761837012455,0.5130501,108060.0,108050.0,0.75035]
[1761837012754,0.7730501,108060.0,108050.0,0.3838]
[1761837012954,1.0960901,108060.0,108050.0,0.3838]
[1761837014252,0.8360901,108060.0,108050.0,0.42723]
[1761837014455,0.8260901,108060.0,108050.0,0.42723]
[1761837015245,1.1260901,108060.0,108050.0,0.42723]
[1761837016151,0.7860901,108060.0,108050.0,0.42723]
[1761837016349,0.001,108060.0,108050.0,0.42723]
[1761837016555,0.7847301,108080.0,108070.0,0.04325]
[1761837016857,0.8347301,108080.0,108070.0,0.40405]
[1761837017249,0.6043797,108080.0,108070.0,0.40405]
[1761837017559,0.9272997,108080.0,108070.0,0.40405]
[1761837018352,0.6043797,108080.0,108070.0,0.76485]
[1761837018556,0.1383296,108080.0,108070.0,0.78985]
[1761837019255,0.1172296,108080.0,108070.0,0.80385]
[1761837019654,0.0945296,108080.0,108070.0,0.80385]
[1761837020356,0.0935296,108080.0,108070.0,0.78985]
[1761837020564,0.0955296,108080.0,108070.0,1.38985]
[1761837022055,0.0945296,108080.0,108070.0,1.36485]
[1761837022456,0.0945296,108080.0,108070.0,0.76485]
[1761837024353,0.0945296,108080.0,108070.0,0.8573882]
[1761837024554,0.0925192,108100.0,108090.0,0.0444]